fUSD/lending_fUSD_20240914
["ID","MTS","AMOUNT","RATE_DAILY","PERIOD"]
[338112326,1726283180685,-439.37969552,0.00027,120]
[338112327,1726283180723,-205.73221334,0.00027,120]
[338112328,1726283180762,-212.3242573,0.00027,120]
[338112329,1726283180799,-201.92679407,0.0002736,120]
[338112330,1726283193389,200.0,0.00011853,2]
[338112344,1726283270495,201.60286949,0.00027,120]
[338112345,1726283314330,151.28,0.00011851,2]
[338112346,1726283321819,297.19596342,0.00012617,2]
[338112347,1726283345926,-200.0,0.00031375,30]
[338112348,1726283345949,-200.0,0.00031375,30]
[338112349,1726283345971,-200.0,0.00031375,30]
[338112350,1726283345993,-200.0,0.00031375,30]
[338112351,1726283346015,-200.0,0.00031375,30]
[338112352,1726283346037,-200.0,0.00031375,30]
[338112353,1726283346060,-200.0,0.00031375,30]
[338112354,1726283346082,-200.0,0.00031375,30]
[338112355,1726283346104,-200.0,0.00031375,30]
[338112356,1726283346135,-200.0,0.00031375,30]
[338112357,1726283346157,-200.0,0.00031375,30]
[338112358,1726283346179,-200.0,0.00031375,30]
[338112359,1726283346202,-200.0,0.00031375,30]
[338112360,1726283346224,-200.0,0.00031375,30]
[338112361,1726283346246,-200.0,0.00031375,30]
[338112362,1726283346268,-200.0,0.00031375,30]
[338112363,1726283346291,-200.0,0.00031375,30]
[338112364,1726283346314,-200.0,0.00031375,30]
[338112365,1726283346337,-200.0,0.00031375,30]
[338112366,1726283346360,-200.0,0.00031375,30]
[338112367,1726283346383,-200.0,0.00031375,30]
[338112368,1726283346406,-200.0,0.00031375,30]
[338112369,1726283346428,-200.0,0.00031375,30]
[338112370,1726283346451,-200.0,0.00031375,30]
[338112371,1726283346475,-200.0,0.00031375,30]
[338112372,1726283346498,-200.0,0.00031375,30]
[338112373,1726283346521,-200.0,0.00031375,30]
[338112374,1726283346749,-200.0,0.00031375,30]
[338112375,1726283346774,-200.0,0.00031375,30]
[338112376,1726283346797,-200.0,0.00031375,30]
[338112377,1726283346820,-200.0,0.00031375,30]
[338112378,1726283346843,-200.0,0.00031375,30]
[338112379,1726283346866,-200.0,0.00031375,30]
[338112380,1726283346889,-200.0,0.00031375,30]
[338112381,1726283346912,-200.0,0.00031375,30]
[338112382,1726283346934,-200.0,0.00031375,30]
[338112383,1726283346956,-200.0,0.00031375,30]
[338112384,1726283346978,-200.0,0.00031375,30]
[338112385,1726283347001,-200.0,0.00031375,30]
[338112386,1726283347024,-200.0,0.00031375,30]
[338112387,1726283347047,-200.0,0.00031375,30]
[338112388,1726283347074,-200.0,0.00031375,30]
[338112389,1726283347096,-200.0,0.00031375,30]
[338112390,1726283347119,-200.0,0.00031375,30]
[338112391,1726283347142,-200.0,0.00031375,30]
[338112392,1726283347165,-200.0,0.00031375,30]
[338112393,1726283347189,-200.0,0.00031375,30]
[338112394,1726283347214,-1000.0,0.00031375,30]
[338112395,1726283347238,-48300.0,0.00031375,120]
[338112396,1726283347262,-200.1290826,0.00031375,30]
[338112397,1726283347285,-30316.69698029,0.00031375,30]
[338112398,1726283347309,-1338.0,0.00031375,90]
[338112399,1726283347336,-50000.0,0.00031375,30]
[338112400,1726283347362,-50000.0,0.00031375,31]
[338112401,1726283347388,-50000.0,0.00031375,32]
[338112402,1726283347414,-50000.0,0.00031375,33]
[338112403,1726283347440,-50000.0,0.00031375,34]
[338112404,1726283347466,-50000.0,0.00031375,35]
[338112405,1726283347489,-200.0,0.00031375,30]
[338112406,1726283347513,-200.0,0.00031375,30]
[338112407,1726283347537,-10000.0,0.00031375,120]
[338112408,1726283347561,-10000.0,0.00031375,120]
[338112409,1726283347584,-10000.0,0.00031375,120]
[338112410,1726283347608,-47485.35001064,0.00031375,120]
[338112411,1726283347636,-10000.0,0.00031375,30]
[338112412,1726283347661,-5000.0,0.00031375,30]
[338112413,1726283347684,-243.7473852,0.00031375,30]
[338112414,1726283347710,-926.30001066,0.00031375,120]
[338112415,1726283347734,-184.0,0.00031375,120]
[338112416,1726283347758,-30000.0,0.00031375,90]
[338112417,1726283347781,-30000.0,0.00031375,90]
[338112418,1726283347804,-9000.0,0.00031375,90]
[338112419,1726283347828,-171240.75825695,0.00031375,90]
[338112420,1726283347852,-181.05008135,0.00031375,60]
[338112421,1726283347877,-2455.2461601,0.00031375,120]
[338112422,1726283347902,-8000.0,0.00031375,90]
[338112423,1726283347926,-20000.0,0.00031375,120]
[338112424,1726283347950,-20000.0,0.00031375,120]
[338112425,1726283347973,-11983.25223622,0.00031375,120]
[338112426,1726283347997,-158.22907373,0.00031375,30]
[338112427,1726283348020,-630.22416227,0.00031375,60]
[338112428,1726283348045,-403.636096,0.00031375,120]
[338112429,1726283348070,-926.20661184,0.00031375,120]
[338112430,1726283348096,-153.0,0.00031375,120]
[338112431,1726283348122,-217.14832048,0.00031375,31]
[338112432,1726283348148,-516.73531396,0.00031375,120]
[338112433,1726283348172,-516.51593648,0.00031375,120]
[338112434,1726283348197,-1542.72285106,0.00031375,120]
[338112435,1726283348226,-1206.4900072,0.00031375,120]
[338112436,1726283348253,-1000.0,0.00031375,120]
[338112437,1726283348279,-1000.0,0.00031375,60]
[338112438,1726283348311,-1000.0,0.00031375,60]
[338112439,1726283348340,-1000.0,0.00031375,30]
[338112440,1726283348363,-1000.0,0.00031375,30]
[338112441,1726283348386,-1000.0,0.00031375,30]
[338112442,1726283348410,-1000.0,0.00031375,30]
[338112443,1726283348433,-1000.0,0.00031375,30]
[338112444,1726283348456,-1000.0,0.00031375,30]
[338112445,1726283348480,-1000.0,0.00031375,60]
[338112446,1726283348504,-1000.0,0.00031375,60]
[338112447,1726283348528,-1000.0,0.00031375,30]
[338112448,1726283348552,-1000.0,0.00031375,120]
[338112449,1726283348575,-1000.0,0.00031375,30]
[338112450,1726283348598,-1000.0,0.00031375,60]
[338112451,1726283348624,-1000.0,0.00031375,120]
[338112452,1726283348647,-1000.0,0.00031375,60]
[338112453,1726283348670,-1000.0,0.00031375,60]
[338112454,1726283348695,-1000.0,0.00031375,30]
[338112455,1726283348719,-1000.0,0.00031375,30]
[338112456,1726283348743,-1000.0,0.00031375,60]
[338112457,1726283348765,-1000.0,0.00031375,30]
[338112458,1726283348789,-1000.0,0.00031375,30]
[338112459,1726283348812,-1000.0,0.00031375,60]
[338112460,1726283348835,-1000.0,0.00031375,60]
[338112461,1726283348858,-1000.0,0.00031375,60]
[338112462,1726283348882,-1000.0,0.00031375,120]
[338112463,1726283348905,-1000.0,0.00031375,30]
[338112464,1726283348930,-1000.0,0.00031375,60]
[338112465,1726283348953,-1000.0,0.00031375,30]
[338112466,1726283348976,-1000.0,0.00031375,30]
[338112467,1726283349000,-1000.0,0.00031375,30]
[338112468,1726283349023,-1000.0,0.00031375,60]
[338112469,1726283349048,-1000.0,0.00031375,60]
[338112470,1726283349072,-1039.44,0.00031375,30]
[338112471,1726283349096,-64500.0,0.00031375,30]
[338112472,1726283349120,-16322.13829346,0.00031375,120]
[338112473,1726283349144,-4999.33253648,0.00031375,120]
[338112474,1726283349168,-4553.0320769,0.00031375,60]
[338112475,1726283349192,-2332.46,0.00031375,88]
[338112476,1726283349216,-10000.0,0.00031375,90]
[338112477,1726283349385,-1000.0,0.00031375,60]
[338112478,1726283349411,-2000.0,0.00031375,90]
[338112479,1726283349434,-6000.0,0.00031375,60]
[338112480,1726283349457,-3000.0,0.00031375,60]
[338112481,1726283349480,-20000.0,0.00031375,90]
[338112482,1726283349507,-1500.0,0.00031375,60]
[338112483,1726283349531,-1500.0,0.00031375,60]
[338112484,1726283349555,-917.6716857,0.00031375,120]
[338112485,1726283349578,-248.93802718,0.00031375,60]
[338112486,1726283349601,-999.999999,0.00031375,120]
[338112487,1726283349632,-553.42719016,0.00031375,30]
[338112488,1726283349658,-437.21422236,0.00031375,30]
[338112489,1726283349683,-706.80335675,0.00031375,30]
[338112490,1726283349708,-20861.63725541,0.00031375,30]
[338112491,1726283349732,-192.34871052,0.00031375,30]
[338112492,1726283349755,-251.93944561,0.00031375,30]
[338112493,1726283349778,-153.09881919,0.00031375,120]
[338112494,1726283349802,-192.47464252,0.00031375,30]
[338112495,1726283349825,-2306.89647909,0.00031375,30]
[338112496,1726283349848,-461.07995061,0.00031375,30]
[338112497,1726283349870,-454.4019935,0.00031375,120]
[338112498,1726283349893,-3000.0,0.00031375,120]
[338112499,1726283349916,-5779.0549594,0.00031375,120]
[338112500,1726283349938,-371.2682725,0.00031375,30]
[338112501,1726283349961,-4152.42389745,0.00031375,120]
[338112502,1726283349984,-5718.01463558,0.00031375,45]
[338112503,1726283350007,-6694.25191656,0.00031375,30]
[338112504,1726283350029,-205382.53877443,0.00031375,30]
[338112505,1726283350052,-200.0,0.00031375,30]
[338112506,1726283350075,-5000.0,0.00031375,34]
[338112507,1726283350097,-3627.0,0.00031375,120]
[338112508,1726283350119,-159.22276254,0.00031375,120]
[338112509,1726283350144,-5000.0,0.00031375,30]
[338112510,1726283350166,-10000.0,0.00031375,120]
[338112511,1726283350189,-10000.0,0.00031375,120]
[338112512,1726283350212,-10000.0,0.00031375,120]
[338112513,1726283350235,-10031.28974062,0.00031375,30]
[338112514,1726283350258,-10000.0,0.00031375,120]
[338112515,1726283350280,-20466.19348948,0.00031375,120]
[338112516,1726283350305,-601.0,0.00031375,120]
[338112517,1726283350328,-40279.0,0.00031375,120]
[338112518,1726283350350,-2607.0,0.00031375,120]
[338112519,1726283350373,-3131.2546,0.00031375,30]
[338112520,1726283350396,-930.68629266,0.00031375,120]
[338112521,1726283350418,-295.01660741,0.00031375,120]
[338112522,1726283350441,-425.85211137,0.00031375,120]
[338112523,1726283350464,-176.54230528,0.00031375,120]
[338112524,1726283350488,-18816.94251418,0.00031375,120]
[338112525,1726283350510,-437.55355507,0.00031375,30]
[338112526,1726283350533,-154.80629496,0.00031375,120]
[338112527,1726283350555,-1020.77701959,0.00031375,120]
[338112528,1726283350577,-263.29751344,0.00031375,120]
[338112529,1726283350599,-261.49483721,0.00031375,120]
[338112530,1726283350623,-8764.35574745,0.00031375,60]
[338112531,1726283350646,-1178.08,0.00031375,30]
[338112532,1726283350669,-1178.08,0.00031375,32]
[338112533,1726283350692,-1178.08,0.00031375,34]
[338112534,1726283350714,-1178.08,0.00031375,36]
[338112535,1726283350736,-1178.08,0.00031375,38]
[338112536,1726283350759,-1178.08,0.00031375,40]
[338112537,1726283350784,-1178.08,0.00031375,40]
[338112538,1726283350807,-1178.08,0.00031375,40]
[338112539,1726283350829,-1178.08,0.00031375,40]
[338112540,1726283350851,-1178.16693678,0.00031375,40]
[338112541,1726283350873,-238.502854,0.00031375,30]
[338112542,1726283350895,-150.0,0.00031375,30]
[338112543,1726283412534,1000.0,0.00031375,30]
[338112544,1726283412935,1000.0,0.00031375,32]
[338112545,1726283413040,493.12,0.00031375,34]
[338112579,1726283430021,250.0,0.00011857,2]
[338112587,1726283431733,-150.0,0.00012662,2]
[338112588,1726283431743,-236.65515778,0.00012662,2]
[338112589,1726283431753,-150.0,0.00012662,2]
[338112590,1726283431763,-150.0,0.00012672,2]
[338112591,1726283431774,-150.0,0.00012673,2]
[338112592,1726283431785,-163.84484582,0.00012694,2]
[338112593,1726283431796,-136.15515418,0.00012694,2]
[338112594,1726283431806,-1021.00484582,0.00012695,2]
[338112595,1726283431819,-5149.76122802,0.00012695,2]
[338112596,1726283431830,-3829.23392616,0.00012695,2]
[338112597,1726283431841,-150.0,0.00012708,2]
[338112598,1726283431851,-150.0,0.0001272,2]
[338112599,1726283431861,-150.0,0.00012728,2]
[338112600,1726283431870,-150.0,0.00012729,2]
[338112601,1726283431880,-167.43512377,0.0001275,2]
[338112602,1726283431889,-150.0,0.00012753,2]
[338112603,1726283431898,-150.0,0.00012754,2]
[338112604,1726283431907,-150.0,0.00012758,2]
[338112605,1726283431917,-150.0,0.00012764,2]
[338112606,1726283431926,-150.0,0.00012773,2]
[338112607,1726283431935,-151.38241557,0.00012781,2]
[338112608,1726283431945,-150.0,0.00012783,2]
[338112609,1726283431955,-150.0,0.00012787,2]
[338112610,1726283431964,-150.0,0.00012793,2]
[338112612,1726283431973,-150.0,0.00012796,2]
[338112614,1726283431982,-150.0,0.000128,2]
[338112615,1726283431991,-975.75378014,0.00012806,2]
[338112618,1726283432001,-150.0,0.00012808,2]
[338112620,1726283432010,-150.0,0.00012809,2]
[338112621,1726283432019,-150.0,0.00012809,2]
[338112623,1726283432029,-150.0,0.00012812,2]
[338112626,1726283432038,-150.0,0.00012812,2]
[338112627,1726283432047,-150.0,0.00012825,2]
[338112628,1726283432056,-150.0,0.00012825,2]
[338112629,1726283432066,-150.0,0.00012826,2]
[338112630,1726283432080,-150.0,0.00012831,2]
[338112631,1726283432090,-150.0,0.0001284,2]
[338112632,1726283432099,-150.0,0.00012846,2]
[338112633,1726283432109,-150.0,0.00012846,2]
[338112634,1726283432119,-150.0,0.00012861,2]
[338112635,1726283432128,-2266.51522,0.0001287,2]
[338112636,1726283432137,-152.64908017,0.00012876,2]
[338112637,1726283432146,-1500.0,0.00012876,2]
[338112638,1726283432155,-150.0,0.00012879,2]
[338112639,1726283432165,-150.0,0.00012884,2]
[338112640,1726283432177,-150.0,0.00012891,2]
[338112641,1726283432186,-1000.0,0.000129,2]
[338112642,1726283432195,-716.5743,0.000129,2]
[338112643,1726283432205,-10749.6504,0.000129,2]
[338112644,1726283432214,-2434.07865977,0.000129,2]
[338112645,1726283432227,-145.33902023,0.000129,2]
[338112646,1726283432236,-500.0,0.000129,2]
[338112647,1726283432246,-337.62621888,0.000129,2]
[338112648,1726283432254,-559.1015,0.000129,2]
[338112649,1726283432264,-11281.338,0.000129,2]
[338112650,1726283432273,-874.9806248,0.000129,2]
[338112651,1726283432284,-684.71908266,0.000129,2]
[338112652,1726283432295,-387.02289021,0.000129,2]
[338112653,1726283432306,-270.26587227,0.000129,2]
[338112654,1726283432317,-89.58063006,0.000129,2]
[338112655,1726283432326,-165.338,0.000129,2]
[338112656,1726283432335,-504.415,0.000129,2]
[338112657,1726283432344,-176.66269988,0.000129,2]
[338112658,1726283432355,-315.29707946,0.000129,2]
[338112659,1726283432366,-768.82318234,0.000129,2]
[338112660,1726283432377,-707.07731665,0.000129,2]
[338112661,1726283432387,-629.99914214,0.000129,2]
[338112662,1726283432398,-462.04097231,0.000129,2]
[338112663,1726283432409,-824.94606925,0.000129,2]
[338112664,1726283432420,-2595.85033797,0.000129,2]
[338112665,1726283432429,-1787.50034622,0.000129,2]
[338112666,1726283432439,-164.67766966,0.000129,2]
[338112667,1726283432447,-711.35745466,0.000129,2]
[338112668,1726283432466,-557.23624738,0.000129,2]
[338112669,1726283432476,-169.21674059,0.000129,2]
[338112670,1726283432485,-682.531,0.00012958,2]
[338112671,1726283432493,-682.465,0.00012958,2]
[338112672,1726283432503,-1933.921,0.00012958,2]
[338112673,1726283432511,-9313.0,0.00012963,2]
[338112674,1726283432520,-181.12,0.00012963,2]
[338112675,1726283432529,-5890.587,0.00012963,2]
[338112676,1726283432539,-1158.935,0.00012963,2]
[338112677,1726283432548,-167.39708922,0.0001299,2]
[338112678,1726283432559,-167.39708922,0.0001299,2]
[338112679,1726283432568,-160.62,0.0001299,2]
[338112680,1726283432578,-160.62,0.0001299,2]
[338112681,1726283432587,-160.62,0.0001299,2]
[338112682,1726283432596,-386.6298897,0.00012997,2]
[338112683,1726283432606,-475.16781933,0.00012999,2]
[338112684,1726283432615,-500.0,0.00012999,2]
[338112685,1726283432624,-500.0,0.00012999,2]
[338112686,1726283432632,-500.0,0.00012999,2]
[338112687,1726283432642,-500.0,0.00012999,2]
[338112688,1726283432654,-500.0,0.00012999,2]
[338112689,1726283432663,-500.0,0.00012999,2]
[338112690,1726283432672,-500.0,0.00012999,2]
[338112691,1726283432683,-500.0,0.00012999,2]
[338112692,1726283432695,-179.35404675,0.00012999,2]
[338112693,1726283432704,-500.0,0.00012999,2]
[338112694,1726283432714,-500.0,0.00012999,2]
[338112695,1726283432724,-500.0,0.00012999,2]
[338112696,1726283432734,-500.0,0.00012999,2]
[338112697,1726283432743,-500.0,0.00012999,2]
[338112698,1726283432753,-500.0,0.00012999,2]
[338112699,1726283432762,-500.0,0.00012999,2]
[338112700,1726283432772,-500.0,0.00012999,2]
[338112701,1726283432781,-500.0,0.00012999,2]
[338112702,1726283432791,-500.0,0.00012999,2]
[338112703,1726283432800,-580.18938593,0.00012999,2]
[338112704,1726283432809,-500.0,0.00012999,2]
[338112705,1726283432819,-150.0,0.00012999,2]
[338112706,1726283432828,-500.0,0.00012999,2]
[338112707,1726283432837,-500.0,0.00012999,2]
[338112708,1726283432847,-500.0,0.00012999,2]
[338112709,1726283432856,-500.0,0.00012999,2]
[338112710,1726283432865,-500.0,0.00012999,2]
[338112711,1726283432874,-505.0,0.00013,2]
[338112712,1726283432884,-30157.82898252,0.00013,2]
[338112713,1726283432894,-66685.38194728,0.00013,2]
[338112714,1726283432906,-288061.85443509,0.00013,2]
[338112715,1726283432917,-7011.24858087,0.00013,2]
[338112716,1726283432929,-13790.59481179,0.00013,2]
[338112717,1726283432940,-13024.37793672,0.00013,2]
[338112718,1726283432951,-371.6925449,0.00013,2]
[338112719,1726283432963,-669.94125223,0.00013,2]
[338112720,1726283432974,-2131.03440012,0.00013,2]
[338112721,1726283432985,-17445.84326624,0.00013,2]
[338112722,1726283432994,-503.04093636,0.00013,3]
[338112723,1726283433004,-784.28265501,0.00013,2]
[338112724,1726283433016,-2999.0,0.00013,2]
[338112725,1726283433027,-85473.5695717,0.00013,2]
[338112726,1726283433038,-57838.33183412,0.00013,2]
[338112727,1726283437687,-1058.5639189,0.00012695,2]
[338112728,1726283437699,-1084.515,0.00012963,2]
[338112729,1726283437708,-514.0,0.00013,2]
[338112730,1726283437719,-32.50990247,0.00013,2]
[338112732,1726283437732,-518.62206885,0.00013,2]
[338112734,1726283437881,-1114.47748706,0.00013,2]
[338112735,1726283437893,-1849.01762945,0.00013,2]
[338112736,1726283437904,-7440.2661436,0.00013,2]
[338112737,1726283437915,-815.0,0.00013,2]
[338112738,1726283437928,-7020.44336498,0.00013,2]
[338112739,1726283437940,-329.97569187,0.00013,2]
[338112740,1726283437951,-4888.27761967,0.00013,2]
[338112741,1726283437962,-300.45999998,0.00013,2]
[338112742,1726283437974,-300.0,0.00013,2]
[338112743,1726283438074,-2730.40354718,0.00013,2]
[338112744,1726283438087,-1275.15327242,0.00013,2]
[338112745,1726283438098,-1194.1931649,0.00013,2]
[338112746,1726283438109,-313.999999,0.00013,2]
[338112747,1726283438121,-1404.2,0.00013,2]
[338112894,1726283439775,-1254.89015594,0.000129,2]
[338112896,1726283439785,-53356.09341111,0.00013,2]
[338112898,1726283439797,-6356.33578479,0.00013,2]
[338112900,1726283439809,-6315.3454475,0.00013,2]
[338112903,1726283439821,-264.37412651,0.00013,2]
[338112932,1726283440089,-931067.78165993,0.00013,2]
[338112934,1726283440100,-616.28742319,0.00013,2]
[338112936,1726283440112,-1386.80376944,0.00013,2]
[338112938,1726283440124,-3274.40791948,0.00013,2]
[338112941,1726283440135,-24732.5333537,0.00013,2]
[338112943,1726283440147,-656.60656736,0.00013,2]
[338112945,1726283440158,-126295.73690273,0.00013,2]
[338112948,1726283440180,-934.36604442,0.000129,2]
[338112950,1726283440189,-26856.104881,0.00013,2]
[338112952,1726283440201,-4853.09999989,0.00013,2]
[338112955,1726283440213,-4925.52846422,0.00013,2]
[338112957,1726283440224,-5966.59176036,0.00013,2]
[338113228,1726283443087,-24616.96800318,0.00013,2]
[338113230,1726283443099,-977.39069926,0.00013,2]
[338113232,1726283443111,-927.77,0.00013,2]
[338113234,1726283443122,-10305.19875171,0.00013,2]
[338113236,1726283443133,-14.67241567,0.00013,2]
[338113237,1726283443143,-500.8198408,0.00013,2]
[338113239,1726283443152,-5423.77494549,0.00013,7]
[338113300,1726283443942,-2834.68284151,0.00013,7]
[338113302,1726283443954,-253.00000018,0.00013,7]
[338113304,1726283443969,-27626.54221282,0.00013,7]
[338113306,1726283443978,-159.872773,0.00013,2]
[338113308,1726283443987,-159.872773,0.00013,2]
[338113310,1726283443998,-159.872773,0.00013,2]
[338113312,1726283444007,-159.872773,0.00013,2]
[338113313,1726283444016,-159.872773,0.00013,2]
[338113314,1726283444026,-156.041017,0.00013,2]
[338113315,1726283444037,-426707.15766601,0.00013,2]
[338113316,1726283444051,-751.2026,0.00013,2]
[338113317,1726283444063,-15986.938685,0.00013,2]
[338113318,1726283444075,-266.362806,0.00013,2]
[338113480,1726283445765,-383.55838142,0.00013,2]
[338113504,1726283445997,-538.0489028,0.00013,2]
[338113507,1726283446011,-1861.594756,0.00013,2]
[338113509,1726283446023,-404.48230813,0.00013,2]
[338113511,1726283446035,-6084.5,0.00013,2]
[338113513,1726283446046,-289.52499693,0.00013,2]
[338113515,1726283446057,-1455.39500522,0.00013,2]
[338113518,1726283446068,-37735.56752952,0.00013,2]
[338114923,1726283460765,268.65,0.00010959,2]
[338115219,1726283471573,223.87,0.00010959,2]
[338115220,1726283482120,186.56,0.00010959,2]
[338115221,1726283492655,155.47,0.00010959,2]
[338115222,1726283503500,777.37,0.00010959,2]
[338115223,1726283513029,722.0,0.00031375,120]
[338115224,1726283517769,295.01660741,0.00031375,120]
[338115225,1726283529119,1008.85726328,0.00031375,30]
[338115226,1726283537082,431.44,0.00028,120]
[338115227,1726283540075,238.502854,0.00031375,30]
[338115228,1726283543935,150.0,0.00031375,30]
[338115229,1726283545668,500.0,0.0001331,30]
[338115230,1726283546043,500.0,0.0001331,30]
[338115231,1726283546398,500.0,0.0001331,30]
[338115232,1726283546792,500.0,0.0001331,30]
[338115233,1726283547195,940.40768865,0.0001331,30]
[338115234,1726283553086,425.85211137,0.00031375,120]
[338115235,1726283576011,150.07,0.00010406,2]
[338115236,1726283590256,-150.07,0.0001267,2]
[338115237,1726283590282,-4661.480703,0.00012676,2]
[338115238,1726283590320,-1261.59092417,0.0001274,2]
[338115239,1726283590345,-150.44631,0.0001287,2]
[338115240,1726283590370,-300.0,0.00012899,2]
[338115241,1726283590394,-30340.3236,0.000129,2]
[338115242,1726283590420,-399.68308664,0.00012973,2]
[338115243,1726283590444,-503.57687918,0.00012973,2]
[338115244,1726283590469,-173.68138671,0.00012999,2]
[338115245,1726283590496,-188385.84295767,0.00013,2]
[338115246,1726283590523,-480303.81289313,0.00013,2]
[338115247,1726283590552,-151.0,0.00013,2]
[338115248,1726283590577,-151.0,0.00013,2]
[338115249,1726283590603,-151.0,0.00013,2]
[338115250,1726283590628,-151.0,0.00013,2]
[338115251,1726283590653,-151.0,0.00013,2]
[338115252,1726283590677,-151.0,0.00013,2]
[338115253,1726283590703,-151.0,0.00013,2]
[338115254,1726283590728,-151.0,0.00013,2]
[338115255,1726283590753,-151.0,0.00013,2]
[338115256,1726283590782,-151.0,0.00013,2]
[338115257,1726283590807,-153.940359,0.00013,2]
[338115258,1726283590831,-151.0,0.00013,2]
[338115259,1726283590856,-151.0,0.00013,2]
[338115260,1726283590880,-151.0,0.00013,2]
[338115261,1726283590904,-151.0,0.00013,2]
[338115262,1726283590929,-151.0,0.00013,2]
[338115263,1726283590953,-151.0,0.00013,2]
[338115264,1726283590977,-151.0,0.00013,2]
[338115265,1726283591000,-151.0,0.00013,2]
[338115266,1726283591024,-151.0,0.00013,2]
[338115267,1726283591047,-151.0,0.00013,2]
[338115268,1726283591071,-151.0,0.00013,2]
[338115269,1726283591096,-151.0,0.00013,2]
[338115270,1726283591123,-151.0,0.00013,2]
[338115271,1726283591151,-151.0,0.00013,2]
[338115272,1726283591178,-263.838747,0.00013,2]
[338115273,1726283591206,-4048.41,0.00013,2]
[338115274,1726283591231,-151.0,0.00013,2]
[338115275,1726283591255,-151.0,0.00013,2]
[338115276,1726283591279,-154.38073,0.00013,2]
[338115277,1726283591305,-151.0,0.00013,2]
[338115278,1726283591329,-151.0,0.00013,2]
[338115279,1726283591354,-151.0,0.00013,2]
[338115280,1726283591381,-151.0,0.00013,2]
[338115281,1726283591407,-151.0,0.00013,2]
[338115282,1726283591434,-151.0,0.00013,2]
[338115283,1726283591458,-151.0,0.00013,2]
[338115284,1726283591484,-151.0,0.00013,2]
[338115285,1726283591511,-151.0,0.00013,2]
[338115286,1726283591535,-151.0,0.00013,2]
[338115287,1726283591560,-151.0,0.00013,2]
[338115288,1726283591585,-151.0,0.00013,2]
[338115289,1726283591609,-151.0,0.00013,2]
[338115290,1726283591634,-151.0,0.00013,2]
[338115291,1726283591658,-303.375705,0.00013,2]
[338115292,1726283591684,-303.375705,0.00013,2]
[338115293,1726283591715,-407.18779,0.00013,2]
[338115294,1726283591741,-407.18779,0.00013,2]
[338115295,1726283591766,-151.0,0.00013,2]
[338115296,1726283591790,-160.699051,0.00013,2]
[338115297,1726283592134,-194.13589,0.00013,2]
[338115298,1726283592158,-151.0,0.00013,2]
[338115299,1726283592181,-160.699051,0.00013,2]
[338115300,1726283592204,-194.13589,0.00013,2]
[338115301,1726283592226,-151.0,0.00013,2]
[338115302,1726283592249,-151.0,0.00013,2]
[338115303,1726283592272,-151.0,0.00013,2]
[338115304,1726283592294,-151.0,0.00013,2]
[338115305,1726283592317,-151.0,0.00013,2]
[338115306,1726283592339,-2000.0,0.00013,2]
[338115307,1726283592362,-200.0,0.00013,2]
[338115308,1726283592385,-151.0,0.00013,2]
[338115309,1726283592407,-265.199756,0.00013,2]
[338115310,1726283592430,-151.458238,0.00013,2]
[338115311,1726283592452,-265.199756,0.00013,2]
[338115312,1726283592474,-151.0,0.00013,2]
[338115313,1726283592497,-151.0,0.00013,2]